Workbook

Sheet Protection Occupations
A2: Measurement Date: 6/30/2015
A3: Membership Goup: Protection Occupations
H4: DEFERRED OUTFLOWS OF RESOURCES | M4: DEFERRED INFLOWS OF RESOURCES
H5: (Excluding Employer Specific Amounts)* | M5: (Excluding Employer Specific Amounts) *
A6: Employer ID # | B6: Employer Name | C6: 2019 Actual Employer Contributions | D6: Employer Allocation Percentage ** | E6: Net Pension Liability (NPL)/ (Asset) | F6: Change in NPL due to 1% Decrease in the Actuarial Assumed Investment Return (6.00 %) | G6: Change in NPL due to 1% Increase in the Actuarial Assumed Investment Return (8.00%) | H6: Differences Between Expected and Actual Experience | I6: Changes of Assumptions | J6: Difference Between Projected and Actual Investment Earnings on Pension Plan Investments | K6: Total Deferred Outflows of Resources | M6: Differences Between Expected and Actual Experience | N6: Changes of Assumptions | O6: Difference Between Projected and Actual Investment Earnings on Pension Plan Investments | P6: Total Deferred Inflows of Resources | Q6: Total Proportionate Share of Allocable Plan Pension Expense
A7: EMPLOYER ID # | B7: EMPLOYER_NAME | C7: 37323356 | D7: 1 | E7: -30472046 | F7: 193420720 | G7: -217962521 | H7: 2366690 | I7: 24921829 | J7: 14442700 | K7: =SUM(H7:J7) -> 41731219 | M7: 1140179 | N7: 984362 | O7: 50666484 | P7: =SUM(M7:O7) -> 52791025 | Q7: 41898902
A8: 00216 | B8: STATE - DEPT OF HUMAN SERVICES/CCUSO | C8: 468856.61 | D8: =+C8/$C$7 -> 0.0125620164 | E8: =ROUND(D8*$E$7,0) -> -382790 | F8: =ROUND(D8*$F$7,0) -> 2429754 | G8: =ROUND(D8*$G$7,0) -> -2738049 | H8: =ROUND(D8*$H$7,0) -> 29730 | I8: =ROUND(D8*$I$7,0) -> 313068 | J8: =ROUND(D8*$J$7,0) -> 181429 | K8: =ROUND(SUM(H8:J8),0) -> 524227 | M8: =ROUND(D8*$M$7,0) -> 14323 | N8: =ROUND(D8*$N$7,0) -> 12366 | O8: =ROUND(D8*$O$7,0) -> 636473 | P8: =ROUND(SUM(M8:O8),0) -> 663162 | Q8: =ROUND(D8*$Q$7,0) -> 526335
A9: 00221 | B9: MAR-MAC UNIFIED POLICE DISTRICT | C9: 9753.39 | D9: =+C9/$C$7 -> 0.000261321356 | E9: =ROUND(D9*$E$7,0) -> -7963 | F9: =ROUND(D9*$F$7,0) -> 50545 | G9: =ROUND(D9*$G$7,0) -> -56958 | H9: =ROUND(D9*$H$7,0) -> 618 | I9: =ROUND(D9*$I$7,0) -> 6513 | J9: =ROUND(D9*$J$7,0) -> 3774 | K9: =ROUND(SUM(H9:J9),0) -> 10905 | M9: =ROUND(D9*$M$7,0) -> 298 | N9: =ROUND(D9*$N$7,0) -> 257 | O9: =ROUND(D9*$O$7,0) -> 13240 | P9: =ROUND(SUM(M9:O9),0) -> 13795 | Q9: =ROUND(D9*$Q$7,0) -> 10949
A10: 00313 | B10: POLK COUNTY RANGERS | C10: 1698730.04 | D10: 0.04551386108 | E10: =ROUND(D10*$E$7,0)-1 -> -1386901 | F10: =ROUND(D10*$F$7,0)-1 -> 8803323 | G10: =ROUND(D10*$G$7,0) -> -9920316 | H10: =ROUND(D10*$H$7,0)+1 -> 107718 | I10: =ROUND(D10*$I$7,0)+1 -> 1134290 | J10: =ROUND(D10*$J$7,0)+1 -> 657344 | K10: 1899352 | M10: =ROUND(D10*$M$7,0)+1 -> 51895 | N10: =ROUND(D10*$N$7,0) -> 44802 | O10: =ROUND(D10*$O$7,0)-1 -> 2306026 | P10: 2402723 | Q10: =ROUND(D10*$Q$7,0) -> 1906981
A11: 00331 | B11: BATTLE CREEK COMMUNITY AMBULANCE | C11: 3898.03 | D11: 0.0001044394293 | E11: -3182 | F11: 20201 | G11: -22764 | H11: 247 | I11: 2603 | J11: 1508 | K11: 4358 | M11: 119 | N11: 103 | O11: 5292 | P11: 5514 | Q11: 4376
A12: 00348 | B12: STATE - PUB DEF - PROTECTION OCCUPATIONS | C12: 137506.21 | D12: 0.003684186652 | E12: -112265 | F12: 712598 | G12: -803015 | H12: 8719 | I12: 91817 | J12: 53210 | K12: 153746 | M12: 4201 | N12: 3627 | O12: 186665 | P12: 194493 | Q12: 154363
A13: 00410 | B13: DELAWARE TOWNSHIP FIRE DEPT - POLK CO | C13: 2556.98 | D13: 6.85088447e-05 | E13: -2088 | F13: 13251 | G13: -14932 | H13: 162 | I13: 1707 | J13: 989 | K13: 2858 | M13: 78 | N13: 67 | O13: 3471 | P13: 3616 | Q13: 2870
A14: 01201 | B14: ADAIR COUNTY | C14: 45840.9 | D14: 0.001228209489 | E14: -37426 | F14: 237561 | G14: -267704 | H14: 2907 | I14: 30609 | J14: 17739 | K14: 51255 | M14: 1400 | N14: 1209 | O14: 62229 | P14: 64838 | Q14: 51461
A15: 01204 | B15: ADAIR COUNTY HEALTH SYSTEM | C15: 22248.75 | D15: 0.0005961079706 | E15: -18165 | F15: 115300 | G15: -129929 | H15: 1411 | I15: 14856 | J15: 8609 | K15: 24876 | M15: 680 | N15: 587 | O15: 30203 | P15: 31470 | Q15: 24976
A16: 01301 | B16: CITY OF FONTANELLE | C16: 917.37 | D16: 2.457897945e-05 | E16: -749 | F16: 4754 | G16: -5357 | H16: 58 | I16: 613 | J16: 355 | K16: 1026 | M16: 28 | N16: 24 | O16: 1245 | P16: 1297 | Q16: 1030
A17: 01302 | B17: CITY OF GREENFIELD | C17: 15157.15 | D17: 0.0004061036205 | E17: -12375 | F17: 78549 | G17: -88515 | H17: 961 | I17: 10121 | J17: 5865 | K17: 16947 | M17: 463 | N17: 400 | O17: 20576 | P17: 21439 | Q17: 17015
A18: 01306 | B18: CITY OF ADAIR | C18: 6461.15 | D18: 0.0001731127822 | E18: -5275 | F18: 33484 | G18: -37732 | H18: 410 | I18: 4314 | J18: 2500 | K18: 7224 | M18: 197 | N18: 170 | O18: 8771 | P18: 9138 | Q18: 7253
A19: 02201 | B19: ADAMS COUNTY | C19: 32000.19 | D19: 0.0008573770805 | E19: -26126 | F19: 165834 | G19: -186876 | H19: 2029 | I19: 21367 | J19: 12383 | K19: 35779 | M19: 978 | N19: 844 | O19: 43440 | P19: 45262 | Q19: 35923
A20: 03201 | B20: ALLAMAKEE COUNTY | C20: 50843.92 | D20: 0.001362254777 | E20: -41511 | F20: 263488 | G20: -296920 | H20: 3224 | I20: 33950 | J20: 19675 | K20: 56849 | M20: 1553 | N20: 1341 | O20: 69021 | P20: 71915 | Q20: 57077
A21: 03304 | B21: CITY OF LANSING | C21: 14052.19 | D21: 0.0003764985657 | E21: -11473 | F21: 72823 | G21: -82063 | H21: 891 | I21: 9383 | J21: 5438 | K21: 15712 | M21: 429 | N21: 371 | O21: 19076 | P21: 19876 | Q21: 15775
A22: 03306 | B22: CITY OF POSTVILLE | C22: 23668.87 | D22: 0.0006341570678 | E22: -19324 | F22: 122659 | G22: -138222 | H22: 1501 | I22: 15804 | J22: 9159 | K22: 26464 | M22: 723 | N22: 624 | O22: 32131 | P22: 33478 | Q22: 26570
A23: 03312 | B23: VETERAN'S MEMORIAL HOSPITAL | C23: 46311.4 | D23: 0.001240815537 | E23: -37810 | F23: 239999 | G23: -270451 | H23: 2937 | I23: 30923 | J23: 17921 | K23: 51781 | M23: 1415 | N23: 1221 | O23: 62868 | P23: 65504 | Q23: 51989
A24: 03313 | B24: WAUKON POLICE DEPARTMENT | C24: 34132.22 | D24: 0.0009145002931 | E24: -27867 | F24: 176883 | G24: -199327 | H24: 2164 | I24: 22791 | J24: 13208 | K24: 38163 | M24: 1043 | N24: 900 | O24: 46335 | P24: 48278 | Q24: 38317
A25: 04201 | B25: APPANOOSE COUNTY | C25: 25995.22 | D25: 0.0006964866718 | E25: -21223 | F25: 134715 | G25: -151808 | H25: 1648 | I25: 17358 | J25: 10059 | K25: 29065 | M25: 794 | N25: 686 | O25: 35289 | P25: 36769 | Q25: 29182
A26: 04301 | B26: CITY OF CENTERVILLE | C26: 20514.31 | D26: 0.000549637337 | E26: -16749 | F26: 106311 | G26: -119800 | H26: 1301 | I26: 13698 | J26: 7938 | K26: 22937 | M26: 627 | N26: 541 | O26: 27848 | P26: 29016 | Q26: 23029
A27: 05201 | B27: AUDUBON COUNTY | C27: 18551.45 | D27: 0.000497046675 | E27: -15146 | F27: 96139 | G27: -108338 | H27: 1176 | I27: 12387 | J27: 7179 | K27: 20742 | M27: 567 | N27: 489 | O27: 25184 | P27: 26240 | Q27: 20826
A28: 05302 | B28: CITY OF AUDUBON | C28: 24992.65 | D28: 0.0006696249394 | E28: -20405 | F28: 129519 | G28: -145953 | H28: 1585 | I28: 16688 | J28: 9671 | K28: 27944 | M28: 763 | N28: 659 | O28: 33928 | P28: 35350 | Q28: 28057
A29: 06201 | B29: BENTON COUNTY | C29: 106651.78 | D29: 0.002857507776 | E29: -87074 | F29: 552701 | G29: -622830 | H29: 6763 | I29: 71214 | J29: 41270 | K29: 119247 | M29: 3258 | N29: 2813 | O29: 144780 | P29: 150851 | Q29: 119726
A30: 06301 | B30: CITY OF VINTON | C30: 59206.51 | D30: 0.001586312603 | E30: -48338 | F30: 306826 | G30: -345757 | H30: 3754 | I30: 39534 | J30: 22911 | K30: 66199 | M30: 1809 | N30: 1562 | O30: 80373 | P30: 83744 | Q30: 66465
A31: 06302 | B31: CITY OF BELLE PLAINE | C31: 23307.94 | D31: 0.0006244867155 | E31: -19029 | F31: 120789 | G31: -136115 | H31: 1478 | I31: 15563 | J31: 9019 | K31: 26060 | M31: 712 | N31: 615 | O31: 31641 | P31: 32968 | Q31: 26165
A32: 06315 | B32: CITY OF URBANA | C32: 6445.72 | D32: 0.0001726993682 | E32: -5263 | F32: 33404 | G32: -37642 | H32: 409 | I32: 4304 | J32: 2494 | K32: 7207 | M32: 197 | N32: 170 | O32: 8750 | P32: 9117 | Q32: 7236
A33: 07001 | B33: UNIVERSITY OF NORTHERN IOWA | C33: 65971.03 | D33: 0.001767553539 | E33: -53861 | F33: 341881 | G33: -385260 | H33: 4183 | I33: 44051 | J33: 25528 | K33: 73762 | M33: 2015 | N33: 1740 | O33: 89556 | P33: 93311 | Q33: 74059
A34: 07201 | B34: BLACK HAWK COUNTY | C34: 133738.9 | D34: 0.003583249588 | E34: -109189 | F34: 693075 | G34: -781014 | H34: 8480 | I34: 89301 | J34: 51752 | K34: 149533 | M34: 4086 | N34: 3527 | O34: 181551 | P34: 189164 | Q34: 150134
A35: 07302 | B35: CITY OF CEDAR FALLS | C35: 146.88 | D35: 3.935337433e-06 | E35: -120 | F35: 761 | G35: -858 | H35: 9 | I35: 98 | J35: 57 | K35: 164 | M35: 4 | N35: 4 | O35: 199 | P35: 207 | Q35: 165
A36: 07304 | B36: CITY OF GILBERTVILLE | C36: 5022.83 | D36: 0.0001345760547 | E36: -4101 | F36: 26030 | G36: -29333 | H36: 318 | I36: 3354 | J36: 1944 | K36: 5616 | M36: 153 | N36: 132 | O36: 6818 | P36: 7103 | Q36: 5639
A37: 07306 | B37: CITY OF DUNKERTON | C37: 5728.29 | D37: 0.0001534773561 | E37: -4677 | F37: 29686 | G37: -33452 | H37: 363 | I37: 3825 | J37: 2217 | K37: 6405 | M37: 175 | N37: 151 | O37: 7776 | P37: 8102 | Q37: 6431
A38: 07311 | B38: CITY OF LA PORTE CITY | C38: 21417.69 | D38: 0.0005738414841 | E38: -17486 | F38: 110993 | G38: -125076 | H38: 1358 | I38: 14301 | J38: 8288 | K38: 23947 | M38: 654 | N38: 565 | O38: 29075 | P38: 30294 | Q38: 24043
A39: 07319 | B39: CITY OF EVANSDALE | C39: 6942.72 | D39: 0.0001860154269 | E39: -5668 | F39: 35979 | G39: -40544 | H39: 440 | I39: 4636 | J39: 2687 | K39: 7763 | M39: 212 | N39: 183 | O39: 9425 | P39: 9820 | Q39: 7794
A40: 07334 | B40: HUDSON POLICE DEPARTMENT | C40: 27589.25 | D40: 0.0007391953178 | E40: -22525 | F40: 142976 | G40: -161117 | H40: 1749 | I40: 18422 | J40: 10676 | K40: 30847 | M40: 843 | N40: 728 | O40: 37452 | P40: 39023 | Q40: 30971
A41: 08201 | B41: BOONE COUNTY | C41: 52677.63 | D41: 0.001411385139 | E41: -43008 | F41: 272991 | G41: -307629 | H41: 3340 | I41: 35174 | J41: 20384 | K41: 58898 | M41: 1609 | N41: 1389 | O41: 71510 | P41: 74508 | Q41: 59135
A42: 08204 | B42: BOONE COUNTY HOSPITAL | C42: 70452.56 | D42: 0.001887626611 | E42: -57520 | F42: 365106 | G42: -411432 | H42: 4467 | I42: 47043 | J42: 27262 | K42: 78772 | M42: 2152 | N42: 1858 | O42: 95639 | P42: 99649 | Q42: 79089
A43: 08301 | B43: CITY OF BOONE | C43: 8963.36 | D43: 0.0002401541812 | E43: -7318 | F43: 46451 | G43: -52345 | H43: 568 | I43: 5985 | J43: 3468 | K43: 10021 | M43: 274 | N43: 236 | O43: 12168 | P43: 12678 | Q43: 10062
A44: 08302 | B44: CITY OF OGDEN | C44: 12665.41 | D44: 0.0003393427429 | E44: -10340 | F44: 65636 | G44: -73964 | H44: 803 | I44: 8457 | J44: 4901 | K44: 14161 | M44: 387 | N44: 334 | O44: 17193 | P44: 17914 | Q44: 14218
A45: 08303 | B45: CITY OF MADRID | C45: 21836.98 | D45: 0.0005850754686 | E45: -17828 | F45: 113166 | G45: -127525 | H45: 1385 | I45: 14581 | J45: 8450 | K45: 24416 | M45: 667 | N45: 576 | O45: 29644 | P45: 30887 | Q45: 24514
A46: 09201 | B46: BREMER COUNTY | C46: 67481.32 | D46: 0.00180801855 | E46: -55094 | F46: 349708 | G46: -394080 | H46: 4279 | I46: 45059 | J46: 26113 | K46: 75451 | M46: 2061 | N46: 1780 | O46: 91606 | P46: 95447 | Q46: 75754
A47: 09302 | B47: CITY OF SUMNER | C47: 15238.51 | D47: 0.0004082834888 | E47: -12441 | F47: 78970 | G47: -88990 | H47: 966 | I47: 10175 | J47: 5897 | K47: 17038 | M47: 466 | N47: 402 | O47: 20686 | P47: 21554 | Q47: 17107
A48: 09303 | B48: CITY OF WAVERLY | C48: 1731.35 | D48: 4.638784358e-05 | E48: -1414 | F48: 8972 | G48: -10111 | H48: 110 | I48: 1156 | J48: 670 | K48: 1936 | M48: 53 | N48: 46 | O48: 2350 | P48: 2449 | Q48: 1944
A49: 09304 | B49: CITY OF TRIPOLI | C49: 6501.62 | D49: 0.0001741970899 | E49: -5308 | F49: 33693 | G49: -37968 | H49: 412 | I49: 4341 | J49: 2516 | K49: 7269 | M49: 199 | N49: 171 | O49: 8826 | P49: 9196 | Q49: 7299
A50: 09305 | B50: CITY OF JANESVILLE | C50: 8952.06 | D50: 0.0002398514217 | E50: -7309 | F50: 46392 | G50: -52279 | H50: 568 | I50: 5978 | J50: 3464 | K50: 10010 | M50: 273 | N50: 236 | O50: 12152 | P50: 12661 | Q50: 10050
A51: 09307 | B51: CITY OF READLYN | C51: 5846.08 | D51: 0.0001566332888 | E51: -4773 | F51: 30296 | G51: -34140 | H51: 371 | I51: 3904 | J51: 2262 | K51: 6537 | M51: 179 | N51: 154 | O51: 7936 | P51: 8269 | Q51: 6563
A52: 09318 | B52: WAVERLY HEALTH CENTER | C52: 92242.37 | D52: 0.00247143826 | E52: -75310 | F52: 478027 | G52: -538681 | H52: 5849 | I52: 61593 | J52: 35694 | K52: 103136 | M52: 2818 | N52: 2433 | O52: 125219 | P52: 130470 | Q52: 103551
A53: 09319 | B53: DENVER POLICE DEPARTMENT | C53: 19921.33 | D53: 0.0005337496982 | E53: -16264 | F53: 103238 | G53: -116337 | H53: 1263 | I53: 13302 | J53: 7709 | K53: 22274 | M53: 609 | N53: 525 | O53: 27043 | P53: 28177 | Q53: 22364
A54: 10201 | B54: BUCHANAN COUNTY | C54: 57779.44 | D54: 0.001548077295 | E54: -47173 | F54: 299430 | G54: -337423 | H54: 3664 | I54: 38581 | J54: 22358 | K54: 64603 | M54: 1765 | N54: 1524 | O54: 78436 | P54: 81725 | Q54: 64863
A55: 10205 | B55: BUCHANAN COUNTY HEALTH CENTER | C55: 5402.99 | D55: 0.000144761634 | E55: -4411 | F55: 28000 | G55: -31553 | H55: 343 | I55: 3608 | J55: 2091 | K55: 6042 | M55: 165 | N55: 142 | O55: 7335 | P55: 7642 | Q55: 6065
A56: 10301 | B56: CITY OF FAIRBANK | C56: 7096.47 | D56: 0.0001901348314 | E56: -5794 | F56: 36776 | G56: -41442 | H56: 450 | I56: 4739 | J56: 2746 | K56: 7935 | M56: 217 | N56: 187 | O56: 9633 | P56: 10037 | Q56: 7966
A57: 10302 | B57: CITY OF INDEPENDENCE | C57: 89765.96 | D57: 0.002405088117 | E57: -73288 | F57: 465194 | G57: -524219 | H57: 5692 | I57: 59939 | J57: 34736 | K57: 100367 | M57: 2742 | N57: 2367 | O57: 121857 | P57: 126966 | Q57: 100771
A58: 10303 | B58: CITY OF JESUP | C58: 21505.46 | D58: 0.0005761930947 | E58: -17558 | F58: 111448 | G58: -125588 | H58: 1364 | I58: 14360 | J58: 8322 | K58: 24046 | M58: 657 | N58: 567 | O58: 29194 | P58: 30418 | Q58: 24142
A59: 10306 | B59: CITY OF LAMONT | C59: 122.52 | D59: 3.282663006e-06 | E59: -100 | F59: 635 | G59: -715 | H59: 8 | I59: 82 | J59: 47 | K59: 137 | M59: 4 | N59: 3 | O59: 166 | P59: 173 | Q59: 138
A60: 11201 | B60: BUENA VISTA COUNTY | C60: 48973.93 | D60: 0.001312152369 | E60: -39984 | F60: 253797 | G60: -286000 | H60: 3105 | I60: 32701 | J60: 18951 | K60: 54757 | M60: 1496 | N60: 1292 | O60: 66482 | P60: 69270 | Q60: 54978
A61: 11204 | B61: BUENA VISTA REGIONAL MEDICAL CENTER | C61: 89917.72 | D61: 0.002409154204 | E61: -73412 | F61: 465980 | G61: -525105 | H61: 5702 | I61: 60041 | J61: 34795 | K61: 100538 | M61: 2747 | N61: 2371 | O61: 122063 | P61: 127181 | Q61: 100941
A62: 11301 | B62: CITY OF SIOUX RAPIDS | C62: 4479.4 | D62: 0.0001200160028 | E62: -3657 | F62: 23214 | G62: -26159 | H62: 284 | I62: 2991 | J62: 1733 | K62: 5008 | M62: 137 | N62: 118 | O62: 6081 | P62: 6336 | Q62: 5029
A63: 11302 | B63: CITY OF NEWELL | C63: 7175.45 | D63: 0.0001922509326 | E63: -5858 | F63: 37185 | G63: -41903 | H63: 455 | I63: 4791 | J63: 2777 | K63: 8023 | M63: 219 | N63: 189 | O63: 9741 | P63: 10149 | Q63: 8055
A64: 11307 | B64: CITY OF STORM LAKE | C64: 6869.18 | D64: 0.0001840450789 | E64: -5608 | F64: 35598 | G64: -40115 | H64: 436 | I64: 4587 | J64: 2658 | K64: 7681 | M64: 210 | N64: 181 | O64: 9325 | P64: 9716 | Q64: 7711
A65: 12201 | B65: BUTLER COUNTY | C65: 35550.69 | D65: 0.000952505182 | E65: -29025 | F65: 184234 | G65: -207610 | H65: 2254 | I65: 23738 | J65: 13757 | K65: 39749 | M65: 1086 | N65: 938 | O65: 48260 | P65: 50284 | Q65: 39909
A66: 12302 | B66: CITY OF PARKERSBURG | C66: 10551.1 | D66: 0.0002826943001 | E66: -8614 | F66: 54679 | G66: -61617 | H66: 669 | I66: 7045 | J66: 4083 | K66: 11797 | M66: 322 | N66: 278 | O66: 14323 | P66: 14923 | Q66: 11845
A67: 12303 | B67: CITY OF SHELL ROCK | C67: 2101.79 | D67: 5.631299608e-05 | E67: -1716 | F67: 10892 | G67: -12274 | H67: 133 | I67: 1403 | J67: 813 | K67: 2349 | M67: 64 | N67: 55 | O67: 2853 | P67: 2972 | Q67: 2359
A68: 12305 | B68: CITY OF CLARKSVILLE | C68: 8141.78 | D68: 0.0002181416912 | E68: -6647 | F68: 42193 | G68: -47547 | H68: 516 | I68: 5436 | J68: 3151 | K68: 9103 | M68: 249 | N68: 215 | O68: 11052 | P68: 11516 | Q68: 9140
A69: 12310 | B69: CITY OF APLINGTON | C69: 9650.84 | D69: 0.0002585737467 | E69: -7879 | F69: 50014 | G69: -56359 | H69: 612 | I69: 6444 | J69: 3735 | K69: 10791 | M69: 295 | N69: 255 | O69: 13101 | P69: 13651 | Q69: 10834
A70: 12321 | B70: CITY OF BRISTOW | C70: 127.64 | D70: 3.419842524e-06 | E70: -104 | F70: 661 | G70: -745 | H70: 8 | I70: 85 | J70: 49 | K70: 142 | M70: 4 | N70: 3 | O70: 173 | P70: 180 | Q70: 143
A71: 13201 | B71: CALHOUN COUNTY | C71: 56832.03 | D71: 0.001522693458 | E71: -46400 | F71: 294520 | G71: -331890 | H71: 3604 | I71: 37948 | J71: 21992 | K71: 63544 | M71: 1736 | N71: 1499 | O71: 77150 | P71: 80385 | Q71: 63799
A72: 13301 | B72: CITY OF ROCKWELL CITY | C72: 22890.43 | D72: 0.0006133004224 | E72: -18689 | F72: 118625 | G72: -133677 | H72: 1451 | I72: 15285 | J72: 8858 | K72: 25594 | M72: 699 | N72: 604 | O72: 31074 | P72: 32377 | Q72: 25697
A73: 13303 | B73: CITY OF LAKE CITY | C73: 16910.58 | D73: =+C73/$C$7 -> 0.0004530830507 | E73: =ROUND(D73*$E$7,0) -> -13806 | F73: =ROUND(D73*$F$7,0) -> 87636 | G73: =ROUND(D73*$G$7,0) -> -98755 | H73: =ROUND(D73*$H$7,0) -> 1072 | I73: =ROUND(D73*$I$7,0) -> 11292 | J73: =ROUND(D73*$J$7,0) -> 6544 | K73: =ROUND(SUM(H73:J73),0) -> 18908 | M73: =ROUND(D73*$M$7,0) -> 517 | N73: =ROUND(D73*$N$7,0) -> 446 | O73: =ROUND(D73*$O$7,0) -> 22956 | P73: =ROUND(SUM(M73:O73),0) -> 23919 | Q73: =ROUND(D73*$Q$7,0) -> 18984
A74: 13307 | B74: CITY OF POMEROY | C74: 3868.49 | D74: 0.0001036479678 | E74: -3158 | F74: 20048 | G74: -22591 | H74: 245 | I74: 2583 | J74: 1497 | K74: 4325 | M74: 118 | N74: 102 | O74: 5251 | P74: 5471 | Q74: 4343
A75: 13309 | B75: CITY OF FARNHAMVILLE | C75: 1473.72 | D75: 3.948519528e-05 | E75: -1203 | F75: 7637 | G75: -8606 | H75: 93 | I75: 984 | J75: 570 | K75: 1647 | M75: 45 | N75: 39 | O75: 2001 | P75: 2085 | Q75: 1654
A76: 13323 | B76: MANSON POLICE DEPT | C76: 18517.8 | D76: 0.0004961450948 | E76: -15119 | F76: 95965 | G76: -108141 | H76: 1174 | I76: 12365 | J76: 7166 | K76: 20705 | M76: 566 | N76: 488 | O76: 25138 | P76: 26192 | Q76: 20788
A77: 14201 | B77: CARROLL COUNTY | C77: 112516.13 | D77: 0.003014630571 | E77: -91862 | F77: 583092 | G77: -657076 | H77: 7135 | I77: 75130 | J77: 43539 | K77: 125804 | M77: 3437 | N77: 2967 | O77: 152741 | P77: 159145 | Q77: 126310
A78: 14302 | B78: CITY OF CARROLL | C78: 2586.54 | D78: 6.930084208e-05 | E78: -2112 | F78: 13404 | G78: -15105 | H78: 164 | I78: 1727 | J78: 1001 | K78: 2892 | M78: 79 | N78: 68 | O78: 3511 | P78: 3658 | Q78: 2904
A79: 14308 | B79: CITY OF MANNING | C79: 19714.02 | D79: 0.0005281952673 | E79: -16095 | F79: 102164 | G79: -115127 | H79: 1250 | I79: 13164 | J79: 7629 | K79: 22043 | M79: 602 | N79: 520 | O79: 26762 | P79: 27884 | Q79: 22131
A80: 14309 | B80: CITY OF COON RAPIDS | C80: 12792.58 | D80: 0.0003427499928 | E80: -10444 | F80: 66295 | G80: -74707 | H80: 811 | I80: 8542 | J80: 4950 | K80: 14303 | M80: 391 | N80: 337 | O80: 17366 | P80: 18094 | Q80: 14361
A81: 15201 | B81: CASS COUNTY | C81: 24615.72 | D81: 0.0006595259012 | E81: -20097 | F81: 127566 | G81: -143752 | H81: 1561 | I81: 16437 | J81: 9525 | K81: 27523 | M81: 752 | N81: 649 | O81: 33416 | P81: 34817 | Q81: 27633
A82: 15302 | B82: CITY OF ATLANTIC | C82: 89769.79 | D82: 0.002405190734 | E82: -73291 | F82: 465214 | G82: -524241 | H82: 5692 | I82: 59942 | J82: 34737 | K82: 100371 | M82: 2742 | N82: 2368 | O82: 121863 | P82: 126973 | Q82: 100775
A83: 15305 | B83: CITY OF ANITA | C83: 61.26 | D83: 1.641331503e-06 | E83: -50 | F83: 317 | G83: -358 | H83: 4 | I83: 41 | J83: 24 | K83: 69 | M83: 2 | N83: 2 | O83: 83 | P83: 87 | Q83: 69
A84: 16201 | B84: CEDAR COUNTY | C84: 78009.21 | D84: 0.002090090988 | E84: -63689 | F84: 404267 | G84: -455562 | H84: 4947 | I84: 52089 | J84: 30187 | K84: 87223 | M84: 2383 | N84: 2057 | O84: 105898 | P84: 110338 | Q84: 87573
A85: 16302 | B85: CITY OF STANWOOD | C85: 25.53 | D85: 6.840220906e-07 | E85: -21 | F85: 132 | G85: -149 | H85: 2 | I85: 17 | J85: 10 | K85: 29 | M85: 1 | N85: 1 | O85: 35 | P85: 37 | Q85: 29
A86: 16303 | B86: CITY OF TIPTON | C86: 50801.25 | D86: 0.001361111525 | E86: -41476 | F86: 263267 | G86: -296671 | H86: 3221 | I86: 33921 | J86: 19658 | K86: 56800 | M86: 1552 | N86: 1340 | O86: 68963 | P86: 71855 | Q86: 57029
A87: 16304 | B87: CITY OF WEST BRANCH | C87: 28161.54 | D87: 0.0007545286121 | E87: -22992 | F87: 145941 | G87: -164459 | H87: 1786 | I87: 18804 | J87: 10897 | K87: 31487 | M87: 860 | N87: 743 | O87: 38229 | P87: 39832 | Q87: 31614
A88: 16305 | B88: CITY OF DURANT | C88: 19094.99 | D88: 0.0005116096741 | E88: -15590 | F88: 98956 | G88: -111512 | H88: 1211 | I88: 12750 | J88: 7389 | K88: 21350 | M88: 583 | N88: 504 | O88: 25921 | P88: 27008 | Q88: 21436
A89: 16306 | B89: CITY OF MECHANICSVILLE | C89: 5853.88 | D89: 0.0001568422732 | E89: -4779 | F89: 30337 | G89: -34186 | H89: 371 | I89: 3909 | J89: 2265 | K89: 6545 | M89: 179 | N89: 154 | O89: 7947 | P89: 8280 | Q89: 6572
A90: 16307 | B90: CITY OF CLARENCE | C90: 8785.14 | D90: 0.0002353791551 | E90: -7172 | F90: 45527 | G90: -51304 | H90: 557 | I90: 5866 | J90: 3400 | K90: 9823 | M90: 268 | N90: 232 | O90: 11926 | P90: 12426 | Q90: 9862
A91: 17201 | B91: CERRO GORDO COUNTY | C91: 147117.44 | D91: 0.003941699133 | E91: -120112 | F91: 762406 | G91: -859143 | H91: 9329 | I91: 98234 | J91: 56929 | K91: 164492 | M91: 4494 | N91: 3880 | O91: 199712 | P91: 208086 | Q91: 165153
A92: 17303 | B92: CITY OF CLEAR LAKE | C92: 150782.3 | D92: 0.004039891268 | E92: -123104 | F92: 781399 | G92: -880545 | H92: 9561 | I92: 100681 | J92: 58347 | K92: 168589 | M92: 4606 | N92: 3977 | O92: 204687 | P92: 213270 | Q92: 169267
A93: 17305 | B93: CITY OF THORNTON | C93: 109.76 | D93: 2.940785925e-06 | E93: -90 | F93: 569 | G93: -641 | H93: 7 | I93: 73 | J93: 42 | K93: 122 | M93: 3 | N93: 3 | O93: 149 | P93: 155 | Q93: 123
A94: 17308 | B94: CITY OF ROCKWELL | C94: 5041.43 | D94: 0.0001350744022 | E94: -4116 | F94: 26126 | G94: -29441 | H94: 320 | I94: 3366 | J94: 1951 | K94: 5637 | M94: 154 | N94: 133 | O94: 6844 | P94: 7131 | Q94: 5659
A95: 18201 | B95: CHEROKEE COUNTY | C95: 23728.19 | D95: 0.0006357464211 | E95: -19372 | F95: 122967 | G95: -138569 | H95: 1505 | I95: 15844 | J95: 9182 | K95: 26531 | M95: 725 | N95: 626 | O95: 32211 | P95: 33562 | Q95: 26637
A96: 18302 | B96: CITY OF CHEROKEE | C96: 55463.24 | D96: 0.001486019639 | E96: -45282 | F96: 287427 | G96: -323897 | H96: 3517 | I96: 37034 | J96: 21462 | K96: 62013 | M96: 1694 | N96: 1463 | O96: 75291 | P96: 78448 | Q96: 62263
A97: 18306 | B97: CITY OF MARCUS | C97: 3789.25 | D97: 0.0001015249004 | E97: -3094 | F97: 19637 | G97: -22129 | H97: 240 | I97: 2530 | J97: 1466 | K97: 4236 | M97: 116 | N97: 100 | O97: 5144 | P97: 5360 | Q97: 4254
A98: 18309 | B98: CITY OF AURELIA | C98: 5242.85 | D98: 0.000140471023 | E98: -4280 | F98: 27170 | G98: -30617 | H98: 332 | I98: 3501 | J98: 2029 | K98: 5862 | M98: 160 | N98: 138 | O98: 7117 | P98: 7415 | Q98: 5886
A99: 19201 | B99: CHICKASAW COUNTY | C99: 37671.03 | D99: 0.001009315186 | E99: -30756 | F99: 195222 | G99: -219993 | H99: 2389 | I99: 25154 | J99: 14577 | K99: 42120 | M99: 1151 | N99: 994 | O99: 51138 | P99: 53283 | Q99: 42289
A100: 19303 | B100: CITY OF NASHUA | C100: 7264.1 | D100: 0.000194626121 | E100: -5931 | F100: 37645 | G100: -42421 | H100: 461 | I100: 4850 | J100: 2811 | K100: 8122 | M100: 222 | N100: 192 | O100: 9861 | P100: 10275 | Q100: 8155
A101: 19304 | B101: CITY OF NEW HAMPTON | C101: 32940.89 | D101: 0.0008825811377 | E101: -26894 | F101: 170709 | G101: -192370 | H101: 2089 | I101: 21996 | J101: 12747 | K101: 36832 | M101: 1006 | N101: 869 | O101: 44717 | P101: 46592 | Q101: 36979
A102: 20201 | B102: CLARKE COUNTY | C102: 53312.78 | D102: 0.001428402633 | E102: -43526 | F102: 276283 | G102: -311338 | H102: 3381 | I102: 35598 | J102: 20630 | K102: 59609 | M102: 1629 | N102: 1406 | O102: 72372 | P102: 75407 | Q102: 59849
A103: 20204 | B103: CLARKE COUNTY HOSPITAL | C103: 47063.01 | D103: 0.001260953329 | E103: -38424 | F103: 243895 | G103: -274841 | H103: 2984 | I103: 31425 | J103: 18212 | K103: 52621 | M103: 1438 | N103: 1241 | O103: 63888 | P103: 66567 | Q103: 52833
A104: 20301 | B104: CITY OF OSCEOLA | C104: 67298.8 | D104: 0.001803128315 | E104: -54945 | F104: 348762 | G104: -393014 | H104: 4267 | I104: 44937 | J104: 26042 | K104: 75246 | M104: 2056 | N104: 1775 | O104: 91358 | P104: 95189 | Q104: 75549
A105: 21201 | B105: CLAY COUNTY | C105: 61408.15 | D105: 0.001645300867 | E105: -50136 | F105: 318235 | G105: -358614 | H105: 3894 | I105: 41004 | J105: 23763 | K105: 68661 | M105: 1876 | N105: 1620 | O105: 83362 | P105: 86858 | Q105: 68936
A106: 21301 | B106: CITY OF EVERLY | C106: 140.44 | D106: 3.76279132e-06 | E106: -115 | F106: 728 | G106: -820 | H106: 9 | I106: 94 | J106: 54 | K106: 157 | M106: 4 | N106: 4 | O106: 191 | P106: 199 | Q106: 158
A107: 21302 | B107: SPENCER HOSPITAL | C107: 45976.09 | D107: 0.001231831618 | E107: -37536 | F107: 238262 | G107: -268493 | H107: 2915 | I107: 30699 | J107: 17791 | K107: 51405 | M107: 1405 | N107: 1213 | O107: 62413 | P107: 65031 | Q107: 51612
A108: 21303 | B108: CITY OF SPENCER | C108: 2188.39 | D108: 5.863325902e-05 | E108: -1787 | F108: 11341 | G108: -12780 | H108: 139 | I108: 1461 | J108: 847 | K108: 2447 | M108: 67 | N108: 58 | O108: 2971 | P108: 3096 | Q108: 2457
A109: 22201 | B109: CLAYTON COUNTY | C109: 74585.71 | D109: 0.001998365581 | E109: -60894 | F109: 386525 | G109: -435569 | H109: 4730 | I109: 49803 | J109: 28862 | K109: 83395 | M109: 2278 | N109: 1967 | O109: 101250 | P109: 105495 | Q109: 83729
A110: 22302 | B110: CITY OF GUTTENBERG | C110: 20485.04 | D110: 0.0005488531096 | E110: -16725 | F110: 106160 | G110: -119629 | H110: 1299 | I110: 13678 | J110: 7927 | K110: 22904 | M110: 626 | N110: 540 | O110: 27808 | P110: 28974 | Q110: 22996
A111: 22303 | B111: CITY OF STRAWBERRY POINT | C111: 14024.13 | D111: 0.0003757467576 | E111: -11450 | F111: 72677 | G111: -81899 | H111: 889 | I111: 9364 | J111: 5427 | K111: 15680 | M111: 428 | N111: 370 | O111: 19038 | P111: 19836 | Q111: 15743
A112: 22306 | B112: CITY OF ELKADER | C112: 12152.73 | D112: 0.0003256065719 | E112: -9922 | F112: 62979 | G112: -70970 | H112: 771 | I112: 8115 | J112: 4703 | K112: 13589 | M112: 371 | N112: 321 | O112: 16497 | P112: 17189 | Q112: 13643
A113: 22308 | B113: CITY OF MONONA | C113: 9316.08 | D113: 0.000249604564 | E113: -7606 | F113: 48279 | G113: -54404 | H113: 591 | I113: 6221 | J113: 3605 | K113: 10417 | M113: 285 | N113: 246 | O113: 12647 | P113: 13178 | Q113: 10458
A114: 22311 | B114: CITY OF GARNAVILLO | C114: 2355.81 | D114: 6.31189221e-05 | E114: -1923 | F114: 12209 | G114: -13758 | H114: 149 | I114: 1573 | J114: 912 | K114: 2634 | M114: 72 | N114: 62 | O114: 3198 | P114: 3332 | Q114: 2645
A115: 22324 | B115: GUTTENBERG MUNIC HOSP | C115: 16113.3 | D115: 0.0004317216276 | E115: -13155 | F115: 83504 | G115: -94099 | H115: 1022 | I115: 10759 | J115: 6235 | K115: 18016 | M115: 492 | N115: 425 | O115: 21874 | P115: 22791 | Q115: 18089
A116: 23201 | B116: CLINTON COUNTY | C116: 84497.81 | D116: 0.002263939234 | E116: -68987 | F116: 437893 | G116: -493454 | H116: 5358 | I116: 56422 | J116: 32697 | K116: 94477 | M116: 2581 | N116: 2229 | O116: 114706 | P116: 119516 | Q116: 94857
A117: 23316 | B117: CITY OF CAMANCHE | C117: 0 | D117: 0 | E117: 0 | F117: 0 | G117: 0 | H117: 0 | I117: 0 | J117: 0 | K117: 0 | M117: 0 | N117: 0 | O117: 0 | P117: 0 | Q117: 0
A118: 24201 | B118: CRAWFORD COUNTY | C118: 28263.31 | D118: 0.0007572553229 | E118: -23075 | F118: 146469 | G118: -165053 | H118: 1792 | I118: 18872 | J118: 10937 | K118: 31601 | M118: 863 | N118: 745 | O118: 38367 | P118: 39975 | Q118: 31728
A119: 24204 | B119: CRAWFORD COUNTY MEMORIAL HOSPITAL | C119: 54813.3 | D119: 0.001468605878 | E119: -44751 | F119: 284059 | G119: -320101 | H119: 3476 | I119: 36600 | J119: 21211 | K119: 61287 | M119: 1674 | N119: 1446 | O119: 74409 | P119: 77529 | Q119: 61533
A120: 24301 | B120: CITY OF DENISON | C120: 83873.48 | D120: 0.002247211639 | E120: -68477 | F120: 434657 | G120: -489808 | H120: 5318 | I120: 56005 | J120: 32456 | K120: 93779 | M120: 2562 | N120: 2212 | O120: 113858 | P120: 118632 | Q120: 94156
A121: 24303 | B121: CITY OF MANILLA | C121: 2690.3 | D121: 7.208087076e-05 | E121: -2196 | F121: 13942 | G121: -15711 | H121: 171 | I121: 1796 | J121: 1041 | K121: 3008 | M121: 82 | N121: 71 | O121: 3652 | P121: 3805 | Q121: 3020
A122: 25201 | B122: DALLAS COUNTY | C122: 205730.93 | D122: 0.005512123026 | E122: -167966 | F122: 1066159 | G122: -1201436 | H122: 13045 | I122: 137372 | J122: 79610 | K122: 230027 | M122: 6285 | N122: 5426 | O122: 279280 | P122: 290991 | Q122: 230952
A123: 25301 | B123: CITY OF WOODWARD | C123: 5965.53 | D123: 0.0001598336977 | E123: -4870 | F123: 30915 | G123: -34838 | H123: 378 | I123: 3983 | J123: 2308 | K123: 6669 | M123: 182 | N123: 157 | O123: 8098 | P123: 8437 | Q123: 6697
A124: 25303 | B124: CITY OF MINBURN | C124: 158.97 | D124: 4.259263288e-06 | E124: -130 | F124: 824 | G124: -928 | H124: 10 | I124: 106 | J124: 62 | K124: 178 | M124: 5 | N124: 4 | O124: 216 | P124: 225 | Q124: 178
A125: 25305 | B125: CITY OF VAN METER | C125: 10760.56 | D125: 0.0002883063356 | E125: -8785 | F125: 55764 | G125: -62840 | H125: 682 | I125: 7185 | J125: 4164 | K125: 12031 | M125: 329 | N125: 284 | O125: 14607 | P125: 15220 | Q125: 12080
A126: 25306 | B126: CITY OF DALLAS CENTER | C126: 188.88 | D126: 5.06063817e-06 | E126: -154 | F126: 979 | G126: -1103 | H126: 12 | I126: 126 | J126: 73 | K126: 211 | M126: 6 | N126: 5 | O126: 256 | P126: 267 | Q126: 212
A127: 25308 | B127: CITY OF PERRY | C127: 74801.62 | D127: 0.002004150431 | E127: -61071 | F127: 387644 | G127: -436830 | H127: 4743 | I127: 49947 | J127: 28945 | K127: 83635 | M127: 2285 | N127: 1973 | O127: 101543 | P127: 105801 | Q127: 83972
A128: 25312 | B128: CITY OF ADEL | C128: 48751.19 | D128: 0.001306184524 | E128: -39802 | F128: 252643 | G128: -284699 | H128: 3091 | I128: 32553 | J128: 18865 | K128: 54509 | M128: 1489 | N128: 1286 | O128: 66180 | P128: 68955 | Q128: 54728
A129: 25314 | B129: CITY OF GRANGER | C129: 12318.9 | D129: 0.0003300587439 | E129: -10058 | F129: 63840 | G129: -71940 | H129: 781 | I129: 8226 | J129: 4767 | K129: 13774 | M129: 376 | N129: 325 | O129: 16723 | P129: 17424 | Q129: 13829
A130: 25315 | B130: CITY OF WAUKEE | C130: 301109.72 | D130: 0.008067594993 | E130: -245836 | F130: 1560440 | G130: -1758433 | H130: 19093 | I130: 201059 | J130: 116518 | K130: 336670 | M130: 9199 | N130: 7941 | O130: 408757 | P130: 425897 | Q130: 338023
A131: 25318 | B131: CITY OF DE SOTO | C131: 7145.4 | D131: 0.0001914458067 | E131: -5834 | F131: 37030 | G131: -41728 | H131: 453 | I131: 4771 | J131: 2765 | K131: 7989 | M131: 218 | N131: 188 | O131: 9700 | P131: 10106 | Q131: 8021
A132: 26201 | B132: DAVIS COUNTY | C132: 30187.36 | D132: 0.0008088061534 | E132: -24646 | F132: 156440 | G132: =ROUND(D132*$G$7,0) -> -176289 | H132: 1914 | I132: 20157 | J132: 11681 | K132: 33752 | M132: 922 | N132: 796 | O132: 40979 | P132: 42697 | Q132: 33888
A133: 26203 | B133: DAVIS COUNTY HOSPITAL | C133: 43993 | D133: 0.001178698936 | E133: -35917 | F133: 227985 | G133: -256912 | H133: 2790 | I133: 29375 | J133: 17024 | K133: 49189 | M133: 1344 | N133: 1160 | O133: 59721 | P133: 62225 | Q133: 49386
A134: 26301 | B134: CITY OF BLOOMFIELD | C134: 31733.06 | D134: 0.0008502198998 | E134: -25908 | F134: 164450 | G134: -185316 | H134: 2012 | I134: 21189 | J134: 12279 | K134: 35480 | M134: 969 | N134: 837 | O134: 43078 | P134: 44884 | Q134: 35623
A135: 27201 | B135: DECATUR COUNTY | C135: 52306.18 | D135: 0.001401432926 | E135: -42705 | F135: 271066 | G135: -305460 | H135: 3317 | I135: 34926 | J135: 20240 | K135: 58483 | M135: 1598 | N135: 1380 | O135: 71006 | P135: 73984 | Q135: 58719
A136: 27204 | B136: DECATUR COUNTY HOSPITAL | C136: 46870.93 | D136: 0.001255806954 | E136: -38267 | F136: 242899 | G136: -273719 | H136: 2972 | I136: 31297 | J136: 18137 | K136: 52406 | M136: 1432 | N136: 1236 | O136: 63627 | P136: 66295 | Q136: 52617
A137: 27301 | B137: CITY OF LAMONI | C137: 17805.07 | D137: =+C137/$C$7 -> 0.0004770490092 | E137: =ROUND(D137*$E$7,0) -> -14537 | F137: =ROUND(D137*$F$7,0) -> 92271 | G137: =ROUND(D137*$G$7,0) -> -103979 | H137: =ROUND(D137*$H$7,0) -> 1129 | I137: =ROUND(D137*$I$7,0) -> 11889 | J137: =ROUND(D137*$J$7,0) -> 6890 | K137: =ROUND(SUM(H137:J137),0) -> 19908 | M137: =ROUND(D137*$M$7,0) -> 544 | N137: =ROUND(D137*$N$7,0) -> 470 | O137: =ROUND(D137*$O$7,0) -> 24170 | P137: =ROUND(SUM(M137:O137),0) -> 25184 | Q137: =ROUND(D137*$Q$7,0) -> 19988
A138: 27302 | B138: CITY OF LEON | C138: 9466.46 | D138: 0.0002536336765 | E138: -7729 | F138: 49058 | G138: -55283 | H138: 600 | I138: 6321 | J138: 3663 | K138: 10584 | M138: 289 | N138: 250 | O138: 12851 | P138: 13390 | Q138: 10627
A139: 28201 | B139: DELAWARE COUNTY | C139: 23755.55 | D139: 0.0006364794741 | E139: -19395 | F139: 123108 | G139: -138729 | H139: 1506 | I139: 15862 | J139: 9192 | K139: 26560 | M139: 726 | N139: 627 | O139: 32248 | P139: 33601 | Q139: 26668
A140: 28204 | B140: REGIONAL MEDICAL CENTER | C140: 55771.94 | D140: 0.001494290599 | E140: -45534 | F140: 289027 | G140: -325699 | H140: 3537 | I140: 37240 | J140: 21582 | K140: 62359 | M140: 1704 | N140: 1471 | O140: 75710 | P140: 78885 | Q140: 62609
A141: 28301 | B141: CITY OF EDGEWOOD | C141: 2107.45 | D141: 5.646464375e-05 | E141: -1721 | F141: 10921 | G141: -12307 | H141: 134 | I141: 1407 | J141: 816 | K141: 2357 | M141: 64 | N141: 56 | O141: 2861 | P141: 2981 | Q141: 2366
A142: 28304 | B142: CITY OF MANCHESTER | C142: 62214.46 | D142: 0.00166690423 | E142: -50794 | F142: 322414 | G142: -363323 | H142: 3945 | I142: 41542 | J142: 24075 | K142: 69562 | M142: 1901 | N142: 1641 | O142: 84456 | P142: 87998 | Q142: 69841
A143: 28312 | B143: CITY OF GREELEY | C143: 153.15 | D143: 4.103328757e-06 | E143: -125 | F143: 794 | G143: -894 | H143: 10 | I143: 102 | J143: 59 | K143: 171 | M143: 5 | N143: 4 | O143: 208 | P143: 217 | Q143: 172
A144: 29201 | B144: DES MOINES COUNTY | C144: 129605.97 | D144: 0.003472516512 | E144: -105815 | F144: 671657 | G144: -756878 | H144: 8218 | I144: 86541 | J144: 50153 | K144: 144912 | M144: 3959 | N144: 3418 | O144: 175940 | P144: 183317 | Q144: 145495
A145: 29305 | B145: CITY OF WEST BURLINGTON | C145: 60994.38 | D145: 0.00163421478 | E145: -49798 | F145: 316091 | G145: -356198 | H145: 3868 | I145: 40728 | J145: 23602 | K145: 68198 | M145: 1863 | N145: 1609 | O145: 82800 | P145: 86272 | Q145: 68472
A146: 30201 | B146: DICKINSON COUNTY | C146: 65018.07 | D146: 0.001742021002 | E146: -53083 | F146: 336943 | G146: -379695 | H146: 4123 | I146: 43414 | J146: 25159 | K146: 72696 | M146: 1986 | N146: 1715 | O146: 88262 | P146: 91963 | Q146: 72989
A147: 30204 | B147: LAKES REGIONAL HEALTHCARE | C147: 65049.67 | D147: 0.001742867656 | E147: -53109 | F147: 337107 | G147: -379880 | H147: 4125 | I147: 43435 | J147: 25172 | K147: 72732 | M147: 1987 | N147: 1716 | O147: 88305 | P147: 92008 | Q147: 73024
A148: 30301 | B148: CITY OF SPIRIT LAKE | C148: 67997.43 | D148: 0.001821846621 | E148: -55515 | F148: 352383 | G148: -397094 | H148: 4312 | I148: 45404 | J148: 26312 | K148: 76028 | M148: 2077 | N148: 1793 | O148: 92307 | P148: 96177 | Q148: 76333
A149: 30302 | B149: CITY OF ARNOLDS PARK | C149: 36130.17 | D149: 0.000968031117 | E149: -29498 | F149: 187237 | G149: -210995 | H149: 2291 | I149: 24125 | J149: 13981 | K149: 40397 | M149: 1104 | N149: 953 | O149: 49047 | P149: 51104 | Q149: 40559
A150: 30305 | B150: CITY OF LAKE PARK | C150: 13179.44 | D150: 0.0003531150843 | E150: -10760 | F150: 68300 | G150: -76966 | H150: 836 | I150: 8800 | J150: 5100 | K150: 14736 | M150: 403 | N150: 348 | O150: 17891 | P150: 18642 | Q150: 14795
A151: 30306 | B151: CITY OF OKOBOJI | C151: 25656.97 | D151: 0.0006874239819 | E151: -20947 | F151: 132962 | G151: -149833 | H151: 1627 | I151: 17132 | J151: 9928 | K151: 28687 | M151: 784 | N151: 677 | O151: 34829 | P151: 36290 | Q151: 28802
A152: 30307 | B152: CITY OF MILFORD | C152: 35090.66 | D152: 0.0009401796559 | E152: -28649 | F152: 181850 | G152: -204924 | H152: 2225 | I152: 23431 | J152: 13579 | K152: 39235 | M152: 1072 | N152: 925 | O152: 47636 | P152: 49633 | Q152: 39392
A153: 31201 | B153: DUBUQUE COUNTY | C153: 50385.18 | D153: 0.001349963814 | E153: -41136 | F153: 261111 | G153: -294242 | H153: 3195 | I153: 33644 | J153: 19497 | K153: 56336 | M153: 1539 | N153: 1329 | O153: 68398 | P153: 71266 | Q153: 56562
A154: 31301 | B154: CITY OF CASCADE | C154: 12058.45 | D154: 0.0003230805397 | E154: -9845 | F154: 62490 | G154: -70419 | H154: 765 | I154: 8052 | J154: 4666 | K154: 13483 | M154: 368 | N154: 318 | O154: 16369 | P154: 17055 | Q154: 13537
A155: 31303 | B155: CITY OF FARLEY | C155: 5781.54 | D155: 0.0001549040767 | E155: -4720 | F155: 29962 | G155: -33763 | H155: 367 | I155: 3860 | J155: 2237 | K155: 6464 | M155: 177 | N155: 152 | O155: 7848 | P155: 8177 | Q155: 6490
A156: 31306 | B156: CITY OF DYERSVILLE | C156: 37579.45 | D156: 0.001006861494 | E156: -30681 | F156: 194748 | G156: -219458 | H156: 2383 | I156: 25093 | J156: 14542 | K156: 42018 | M156: 1148 | N156: 991 | O156: 51014 | P156: 53153 | Q156: 42186
A157: 31307 | B157: CITY OF EPWORTH | C157: 6278.36 | D157: 0.0001682153127 | E157: -5126 | F157: 32536 | G157: -36665 | H157: 398 | I157: 4192 | J157: 2429 | K157: 7019 | M157: 192 | N157: 166 | O157: 8523 | P157: 8881 | Q157: 7048
A158: 31308 | B158: CITY OF NEW VIENNA | C158: 804.55 | D158: 2.155620732e-05 | E158: -657 | F158: 4169 | G158: -4698 | H158: 51 | I158: 537 | J158: 311 | K158: 899 | M158: 25 | N158: 21 | O158: 1092 | P158: 1138 | Q158: 903
A159: 31311 | B159: CITY OF PEOSTA | C159: 16498.65 | D159: 0.0004420462619 | E159: -13470 | F159: 85501 | G159: -96350 | H159: 1046 | I159: 11017 | J159: 6384 | K159: 18447 | M159: 504 | N159: 435 | O159: 22397 | P159: 23336 | Q159: 18521
A160: 31319 | B160: CITY OF ASBURY | C160: 29083.21 | D160: 0.0007792228009 | E160: -23745 | F160: 150718 | G160: -169841 | H160: 1844 | I160: 19420 | J160: 11254 | K160: 32518 | M160: 888 | N160: 767 | O160: 39480 | P160: 41135 | Q160: 32649
A161: 32201 | B161: EMMET COUNTY | C161: 40210.47 | D161: 0.001077354084 | E161: -32829 | F161: 208383 | G161: -234823 | H161: 2550 | I161: 26850 | J161: 15560 | K161: 44960 | M161: 1228 | N161: 1061 | O161: 54586 | P161: 56875 | Q161: 45140
A162: 32301 | B162: CITY OF ARMSTRONG | C162: 6827.46 | D162: 0.0001829272802 | E162: -5574 | F162: 35382 | G162: -39871 | H162: 433 | I162: 4559 | J162: 2642 | K162: 7634 | M162: 209 | N162: 180 | O162: 9268 | P162: 9657 | Q162: 7664
A163: 32303 | B163: CITY OF ESTHERVILLE | C163: 1846.26 | D163: 4.946661281e-05 | E163: -1507 | F163: 9568 | G163: -10782 | H163: 117 | I163: 1233 | J163: 714 | K163: 2064 | M163: 56 | N163: 49 | O163: 2506 | P163: 2611 | Q163: 2073
A164: 33201 | B164: FAYETTE COUNTY | C164: 69566.31 | D164: 0.001863881426 | E164: -56796 | F164: 360513 | G164: -406256 | H164: 4411 | I164: 46451 | J164: 26919 | K164: 77781 | M164: 2125 | N164: 1835 | O164: 94436 | P164: 98396 | Q164: 78095
A165: 33302 | B165: CITY OF WEST UNION | C165: 20831.59 | D165: 0.0005581381803 | E165: -17008 | F165: 107955 | G165: -121653 | H165: 1321 | I165: 13910 | J165: 8061 | K165: 23292 | M165: 636 | N165: 549 | O165: 28279 | P165: 29464 | Q165: 23385
A166: 33305 | B166: CITY OF FAYETTE | C166: 17606.36 | D166: 0.0004717249971 | E166: -14374 | F166: 91241 | G166: -102818 | H166: 1116 | I166: 11756 | J166: 6813 | K166: 19685 | M166: 538 | N166: 464 | O166: 23901 | P166: 24903 | Q166: 19765
A167: 34201 | B167: FLOYD COUNTY | C167: 25805.48 | D167: 0.0006914029917 | E167: -21068 | F167: 133732 | G167: -150700 | H167: 1636 | I167: 17231 | J167: 9986 | K167: 28853 | M167: 788 | N167: 681 | O167: 35031 | P167: 36500 | Q167: 28969
A168: 34302 | B168: CITY OF CHARLES CITY | C168: 620.35 | D168: 1.662095981e-05 | E168: -506 | F168: 3215 | G168: -3623 | H168: 39 | I168: 414 | J168: 240 | K168: 693 | M168: 19 | N168: 16 | O168: 842 | P168: 877 | Q168: 696
A169: 34305 | B169: CITY OF NORA SPRINGS | C169: 9179.63 | D169: 0.0002459486762 | E169: -7495 | F169: 47572 | G169: -53608 | H169: 582 | I169: 6129 | J169: 3552 | K169: 10263 | M169: 280 | N169: 242 | O169: 12461 | P169: 12983 | Q169: 10305
A170: 35201 | B170: FRANKLIN COUNTY | C170: 22356.66 | D170: 0.0005989991897 | E170: -18253 | F170: 115859 | G170: -130559 | H170: 1418 | I170: 14928 | J170: 8651 | K170: 24997 | M170: 683 | N170: 590 | O170: 30349 | P170: 31622 | Q170: 25097
A171: 35205 | B171: FRANKLIN GEN HOSP | C171: 26905.62 | D171: 0.0007208789049 | E171: -21967 | F171: 139433 | G171: -157125 | H171: 1706 | I171: 17966 | J171: 10411 | K171: 30083 | M171: 822 | N171: 710 | O171: 36524 | P171: 38056 | Q171: 30204
A172: 35301 | B172: CITY OF HAMPTON | C172: 39312.6 | D172: 0.001053297565 | E172: -32096 | F172: 203730 | G172: -229579 | H172: 2493 | I172: 26250 | J172: 15212 | K172: 43955 | M172: 1201 | N172: 1037 | O172: 53367 | P172: 55605 | Q172: 44132
A173: 35309 | B173: CITY OF SHEFFIELD | C173: 6632 | D173: 0.0001776903449 | E173: -5415 | F173: 34369 | G173: -38730 | H173: 421 | I173: 4428 | J173: 2566 | K173: 7415 | M173: 203 | N173: 175 | O173: 9003 | P173: 9381 | Q173: 7445
A174: 35311 | B174: CITY OF HANSELL | C174: 198.08 | D174: 5.307132617e-06 | E174: -162 | F174: 1027 | G174: -1157 | H174: 13 | I174: 132 | J174: 77 | K174: 222 | M174: 6 | N174: 5 | O174: 269 | P174: 280 | Q174: 222
A175: 36201 | B175: FREMONT COUNTY | C175: 66467.94 | D175: 0.001780867187 | E175: -54267 | F175: 344457 | G175: -388162 | H175: 4215 | I175: 44382 | J175: 25721 | K175: 74318 | M175: 2031 | N175: 1753 | O175: 90230 | P175: 94014 | Q175: 74616
A176: 36306 | B176: CITY OF TABOR | C176: 4941.68 | D176: 0.000132401813 | E176: -4035 | F176: 25609 | G176: -28859 | H176: 313 | I176: 3300 | J176: 1912 | K176: 5525 | M176: 151 | N176: 130 | O176: 6708 | P176: 6989 | Q176: 5547
A177: 37201 | B177: GREENE COUNTY | C177: 49124.13 | D177: 0.001316176659 | E177: -40107 | F177: 254576 | G177: -286877 | H177: 3115 | I177: 32802 | J177: 19009 | K177: 54926 | M177: 1501 | N177: 1296 | O177: 66686 | P177: 69483 | Q177: 55146
A178: 37303 | B178: CITY OF JEFFERSON | C178: 42666.24 | D178: 0.001143151221 | E178: -34834 | F178: 221109 | G178: -249164 | H178: 2705 | I178: 28489 | J178: 16510 | K178: 47704 | M178: 1303 | N178: 1125 | O178: 57919 | P178: 60347 | Q178: 47897
A179: 38201 | B179: GRUNDY COUNTY | C179: 29599.73 | D179: 0.0007930618565 | E179: -24166 | F179: 153395 | G179: -172858 | H179: 1877 | I179: 19765 | J179: 11454 | K179: 33096 | M179: 904 | N179: 781 | O179: 40182 | P179: 41867 | Q179: 33228
A180: 38303 | B180: CITY OF GRUNDY CENTER | C180: 41421.41 | D180: 0.001109798647 | E180: -33818 | F180: 214658 | G180: -241895 | H180: 2627 | I180: 27658 | J180: 16028 | K180: 46313 | M180: 1265 | N180: 1092 | O180: 56230 | P180: 58587 | Q180: 46499
A181: 39201 | B181: GUTHRIE COUNTY | C181: 32791.79 | D181: 0.0008785863201 | E181: -26772 | F181: 169937 | G181: -191499 | H181: 2079 | I181: 21896 | J181: 12689 | K181: 36664 | M181: 1002 | N181: 865 | O181: 44515 | P181: 46382 | Q181: 36812
A182: 39301 | B182: CITY OF PANORA | C182: 43786.73 | D182: 0.00117317237 | E182: -35749 | F182: 226916 | G182: -255708 | H182: 2777 | I182: 29238 | J182: 16944 | K182: 48959 | M182: 1338 | N182: 1155 | O182: 59441 | P182: 61934 | Q182: 49155
A183: 39303 | B183: CITY OF STUART | C183: 37900.38 | D183: 0.001015460132 | E183: -30943 | F183: 196411 | G183: -221332 | H183: 2403 | I183: 25307 | J183: 14666 | K183: 42376 | M183: 1158 | N183: 1000 | O183: 51450 | P183: 53608 | Q183: 42547
A184: 40201 | B184: HAMILTON COUNTY | C184: 105950.6 | D184: 0.002838721148 | E184: -86502 | F184: 549067 | G184: -618735 | H184: 6718 | I184: 70746 | J184: 40999 | K184: 118463 | M184: 3237 | N184: 2794 | O184: 143828 | P184: 149859 | Q184: 118939
A185: 40202 | B185: HAMILTON HOSPITAL | C185: 50684.81 | D185: 0.001357991763 | E185: -41381 | F185: 262664 | G185: -295991 | H185: 3214 | I185: 33844 | J185: 19613 | K185: 56671 | M185: 1548 | N185: 1337 | O185: 68805 | P185: 71690 | Q185: 56898
A186: 40302 | B186: CITY OF WEBSTER CITY | C186: 2056.22 | D186: 5.509204478e-05 | E186: -1679 | F186: 10656 | G186: -12008 | H186: 130 | I186: 1373 | J186: 796 | K186: 2299 | M186: 63 | N186: 54 | O186: 2791 | P186: 2908 | Q186: 2308
A187: 40303 | B187: CITY OF STRATFORD | C187: 555.43 | D187: 1.488156638e-05 | E187: -453 | F187: 2878 | G187: -3244 | H187: 35 | I187: 371 | J187: 215 | K187: 621 | M187: 17 | N187: 15 | O187: 754 | P187: 786 | Q187: 624
A188: 40304 | B188: CITY OF JEWELL | C188: 11779.29 | D188: 0.0003156010408 | E188: -9617 | F188: 61044 | G188: -68789 | H188: 747 | I188: 7865 | J188: 4558 | K188: 13170 | M188: 360 | N188: 311 | O188: 15990 | P188: 16661 | Q188: 13223
A189: 40307 | B189: CITY OF BLAIRSBURG | C189: 158.04 | D189: 4.234345915e-06 | E189: -129 | F189: 819 | G189: -923 | H189: 10 | I189: 106 | J189: 61 | K189: 177 | M189: 5 | N189: 4 | O189: 215 | P189: 224 | Q189: 177
A190: 40308 | B190: CITY OF WILLIAMS | C190: 186.85 | D190: 5.006248634e-06 | E190: -153 | F190: 968 | G190: -1091 | H190: 12 | I190: 125 | J190: 72 | K190: 209 | M190: 6 | N190: 5 | O190: 254 | P190: 265 | Q190: 210
A191: 41201 | B191: HANCOCK COUNTY | C191: 40173.49 | D191: 0.001076363283 | E191: -32799 | F191: 208191 | G191: -234607 | H191: 2547 | I191: 26825 | J191: 15546 | K191: 44918 | M191: 1227 | N191: 1060 | O191: 54536 | P191: 56823 | Q191: 45098
A192: 41302 | B192: CITY OF BRITT | C192: 21093.45 | D192: 0.0005651541624 | E192: -17221 | F192: 109313 | G192: -123182 | H192: 1338 | I192: 14085 | J192: 8162 | K192: 23585 | M192: 644 | N192: 556 | O192: 28634 | P192: 29834 | Q192: 23679
A193: 41303 | B193: CITY OF GARNER | C193: 30366.64 | D193: 0.00081360958 | E193: -24792 | F193: 157369 | G193: -177336 | H193: 1926 | I193: 20277 | J193: 11751 | K193: 33954 | M193: 928 | N193: 801 | O193: 41223 | P193: 42952 | Q193: 34089
A194: 41305 | B194: CITY OF KANAWHA | C194: 6840.63 | D194: 0.0001832801423 | E194: -5585 | F194: 35450 | G194: -39948 | H194: 434 | I194: 4568 | J194: 2647 | K194: 7649 | M194: 209 | N194: 180 | O194: 9286 | P194: 9675 | Q194: 7679
A195: 42201 | B195: HARDIN COUNTY | C195: 83672.82 | D195: 0.002241835381 | E195: -68313 | F195: 433617 | G195: -488636 | H195: 5306 | I195: 55871 | J195: 32378 | K195: 93555 | M195: 2556 | N195: 2207 | O195: 113586 | P195: 118349 | Q195: 93930
A196: 42302 | B196: CITY OF ACKLEY | C196: 18708.19 | D196: 0.0005012461902 | E196: -15274 | F196: 96951 | G196: -109253 | H196: 1186 | I196: 12492 | J196: 7239 | K196: 20917 | M196: 572 | N196: 493 | O196: 25396 | P196: 26461 | Q196: 21002
A197: 42303 | B197: CITY OF ELDORA | C197: 58001.45 | D197: 0.001554025581 | E197: -47354 | F197: 300581 | G197: -338719 | H197: 3678 | I197: 38729 | J197: 22444 | K197: 64851 | M197: 1772 | N197: 1530 | O197: 78737 | P197: 82039 | Q197: 65112
A198: 42304 | B198: CITY OF IOWA FALLS | C198: 58312.92 | D198: 0.001562370758 | E198: -47609 | F198: 302195 | G198: -340538 | H198: 3698 | I198: 38937 | J198: 22565 | K198: 65200 | M198: 1781 | N198: 1538 | O198: 79160 | P198: 82479 | Q198: 65462
A199: 42315 | B199: CITY OF HUBBARD | C199: 201 | D199: 5.385367811e-06 | E199: -164 | F199: 1042 | G199: -1174 | H199: 13 | I199: 134 | J199: 78 | K199: 225 | M199: 6 | N199: 5 | O199: 273 | P199: 284 | Q199: 226
A200: 43201 | B200: HARRISON COUNTY | C200: 50389.5 | D200: 0.001350079559 | E200: -41140 | F200: 261133 | G200: -294267 | H200: 3195 | I200: 33646 | J200: 19499 | K200: 56340 | M200: 1539 | N200: 1329 | O200: 68404 | P200: 71272 | Q200: 56567
A201: 43301 | B201: CITY OF MISSOURI VALLEY | C201: 31560.6 | D201: =+C201/$C$7 -> 0.0008455992007 | E201: =ROUND(D201*$E$7,0) -> -25767 | F201: =ROUND(D201*$F$7,0) -> 163556 | G201: =ROUND(D201*$G$7,0) -> -184309 | H201: =ROUND(D201*$H$7,0) -> 2001 | I201: =ROUND(D201*$I$7,0) -> 21074 | J201: =ROUND(D201*$J$7,0) -> 12213 | K201: =ROUND(SUM(H201:J201),0) -> 35288 | M201: =ROUND(D201*$M$7,0) -> 964 | N201: =ROUND(D201*$N$7,0) -> 832 | O201: =ROUND(D201*$O$7,0) -> 42844 | P201: =ROUND(SUM(M201:O201),0) -> 44640 | Q201: =ROUND(D201*$Q$7,0) -> 35430
... 256 more rows
